lending/lending_fUSD_20240603
["ID","MTS","AMOUNT","RATE_DAILY","PERIOD"]
[328439695,1717389050927,-2118.35,0.00029315,4]
[328439696,1717389050937,-759.25,0.00029315,4]
[328439697,1717389050947,-912.58,0.00029315,4]
[328439698,1717389050956,-500.0,0.00029315,4]
[328439699,1717389050967,-500.0,0.00029315,4]
[328439700,1717389050977,-1405.62,0.00029315,4]
[328439701,1717389050988,-1421.66,0.00029315,4]
[328439702,1717389050999,-500.0,0.00029315,4]
[328439703,1717389051008,-500.0,0.00029315,4]
[328439704,1717389051018,-566.0,0.00029315,4]
[328439705,1717389051027,-3946.44,0.00029315,4]
[328439706,1717389051037,-530.15,0.00029315,4]
[328439707,1717389051047,-1447.14,0.00029315,4]
[328439708,1717389051056,-818.94,0.00029315,4]
[328439709,1717389051065,-12791.31,0.00029315,4]
[328439710,1717389051076,-733.27,0.00029315,4]
[328439711,1717389051087,-500.0,0.00029315,4]
[328439712,1717389051096,-500.0,0.00029315,4]
[328439713,1717389051105,-768.52,0.00029315,4]
[328439714,1717389051116,-500.0,0.00029315,4]
[328439715,1717389051125,-500.0,0.00029315,4]
[328439716,1717389051135,-500.0,0.00029315,4]
[328439717,1717389051145,-500.0,0.00029315,4]
[328439718,1717389051155,-500.0,0.00029319,4]
[328439719,1717389051165,-500.0,0.00029319,4]
[328439720,1717389051175,-500.0,0.00029319,4]
[328439721,1717389051184,-500.0,0.00029319,4]
[328439722,1717389051194,-500.0,0.00029319,4]
[328439723,1717389051203,-500.0,0.00029319,4]
[328439724,1717389051212,-213.39145828,0.00029319,4]
[328439725,1717389051222,-2915.06,0.00029319,4]
[328439726,1717389051231,-500.0,0.00029319,4]
[328439727,1717389051241,-982.37,0.00029319,4]
[328439728,1717389051251,-1544.48,0.00029319,4]
[328439729,1717389051260,-644.6,0.00029319,4]
[328439730,1717389051270,-547.39,0.00029319,4]
[328439731,1717389051279,-500.0,0.00029319,4]
[328439732,1717389051288,-1062.74,0.00029319,4]
[328439733,1717389051297,-1179.69,0.00029319,4]
[328439734,1717389051307,-500.0,0.00029319,4]
[328439735,1717389051316,-785.78,0.00029319,4]
[328439736,1717389051326,-500.0,0.00029319,4]
[328439737,1717389051336,-500.0,0.00029319,4]
[328439738,1717389051346,-500.0,0.00029319,4]
[328439739,1717389051357,-1221.0,0.00029319,4]
[328439740,1717389051366,-340.21981468,0.00029319,2]
[328439741,1717389051375,-748.54,0.00029319,4]
[328439742,1717389051385,-500.0,0.00029319,4]
[328439743,1717389051394,-500.0,0.00029319,4]
[328439744,1717389051405,-180.20352916,0.00029319,4]
[328439745,1717389051414,-801.18,0.00029319,4]
[328439746,1717389051425,-500.0,0.00029319,4]
[328439747,1717389051436,-576.19,0.00029319,4]
[328439748,1717389051449,-1096.48,0.00029319,4]
[328439749,1717389051459,-525.18,0.00029319,4]
[328439750,1717389051469,-500.0,0.00029319,4]
[328439751,1717389051479,-297.61247622,0.00029319,4]
[328439752,1717389051489,-1379.61,0.00029319,4]
[328439753,1717389051499,-735.02,0.00029319,4]
[328439754,1717389051509,-500.0,0.00029319,4]
[328439755,1717389051520,-500.0,0.00029319,4]
[328439756,1717389051530,-500.0,0.00029319,4]
[328439757,1717389051539,-500.0,0.00029319,4]
[328439758,1717389051549,-519.44436654,0.0002932,4]
[328439759,1717389051560,-500.0,0.0002932,4]
[328439760,1717389051570,-532.31235218,0.0002932,4]
[328439761,1717389051580,-500.0,0.0002932,4]
[328439762,1717389051591,-500.0,0.0002932,4]
[328439763,1717389051600,-500.0,0.0002932,4]
[328439764,1717389051610,-500.0,0.0002932,4]
[328439765,1717389051620,-500.0,0.0002932,4]
[328439766,1717389051629,-500.0,0.0002932,4]
[328439767,1717389051640,-500.0,0.0002932,4]
[328439768,1717389051651,-500.0,0.0002932,4]
[328439769,1717389051662,-500.0,0.0002932,4]
[328439770,1717389051671,-500.0,0.0002932,4]
[328439771,1717389051680,-500.0,0.0002932,4]
[328439772,1717389051689,-500.0,0.0002932,4]
[328439773,1717389051699,-500.0,0.0002932,4]
[328439774,1717389051708,-500.0,0.0002932,4]
[328439775,1717389051717,-500.0,0.0002932,4]
[328439776,1717389051727,-500.0,0.0002932,4]
[328439777,1717389051735,-500.0,0.0002932,4]
[328439778,1717389051745,-500.0,0.0002932,4]
[328439779,1717389051756,-500.0,0.0002932,4]
[328439780,1717389051766,-500.0,0.0002932,4]
[328439781,1717389051776,-500.0,0.0002932,4]
[328439782,1717389051785,-500.0,0.0002932,4]
[328439783,1717389051795,-541.29,0.0002932,4]
[328439784,1717389051804,-500.0,0.0002932,4]
[328439785,1717389051815,-500.0,0.0002932,4]
[328439786,1717389051825,-500.0,0.0002932,4]
[328439787,1717389051838,-500.0,0.0002932,4]
[328439788,1717389051848,-500.0,0.0002932,4]
[328439789,1717389051858,-500.0,0.0002932,4]
[328439790,1717389051868,-500.0,0.0002932,4]
[328439791,1717389051878,-500.0,0.0002932,4]
[328439792,1717389051888,-812.33,0.0002932,4]
[328439793,1717389051898,-500.0,0.0002932,4]
[328439794,1717389051907,-500.0,0.0002932,4]
[328439795,1717389051916,-500.0,0.0002932,4]
[328439796,1717389051927,-3000.0,0.00029378,2]
[328439797,1717389051938,-3000.0,0.00029403,2]
[328439798,1717389051948,-150.0,0.0002941,2]
[328439799,1717389051958,-906.13,0.00029427,2]
[328439800,1717389051968,-3000.0,0.00029437,2]
[328439801,1717389051977,-721.375399,0.00029438,2]
[328439802,1717389051987,-601.111706,0.00029438,2]
[328439803,1717389051996,-318.108728,0.00029438,2]
[328439804,1717389052006,-13860.93441176,0.00029444,2]
[328439805,1717389052016,-3000.0,0.00029448,2]
[328439806,1717389052026,-3000.0,0.00029461,2]
[328439807,1717389052035,-664.881362,0.000295,2]
[328439808,1717389052045,-222.31974533,0.000295,3]
[328439809,1717389052055,-150.0,0.00029547,2]
[328439810,1717389052065,-500.0,0.00029589,4]
[328439811,1717389052074,-150.0,0.00029589,4]
[328439812,1717389052084,-500.0,0.00029589,4]
[328439813,1717389052093,-500.0,0.00029589,4]
[328439814,1717389052102,-500.0,0.00029589,4]
[328439815,1717389052111,-500.0,0.00029589,4]
[328439816,1717389052121,-500.0,0.00029589,4]
[328439817,1717389052130,-500.0,0.00029589,4]
[328439818,1717389052139,-500.0,0.00029589,4]
[328439819,1717389052149,-500.0,0.00029589,4]
[328439820,1717389052159,-500.0,0.00029589,4]
[328439821,1717389052168,-1568.09,0.00029589,4]
[328439822,1717389052177,-4687.56,0.00029589,4]
[328439823,1717389052187,-1548.33,0.00029589,4]
[328439824,1717389052196,-4104.15,0.00029589,4]
[328439825,1717389052205,-1535.91,0.00029589,4]
[328439826,1717389052214,-500.0,0.00029589,4]
[328439827,1717389052224,-239.1243546,0.00029589,4]
[328439828,1717389052233,-910.08,0.00029589,4]
[328439829,1717389052243,-696.56,0.00029589,4]
[328439830,1717389052252,-500.0,0.00029589,4]
[328439831,1717389052261,-1151.42,0.00029589,4]
[328439832,1717389052271,-1173.66,0.00029589,4]
[328439833,1717389052280,-5921.43,0.00029589,4]
[328439834,1717389052289,-539.44,0.00029589,4]
[328439835,1717389052298,-848.91,0.00029589,4]
[328439836,1717389052307,-1286.49,0.00029589,4]
[328439837,1717389052317,-500.0,0.00029589,4]
[328439838,1717389052326,-559.62,0.00029589,4]
[328439839,1717389052338,-632.25,0.00029589,4]
[328439840,1717389052347,-378.26959044,0.00029589,4]
[328439841,1717389052357,-500.0,0.00029589,4]
[328439842,1717389052367,-565.7,0.00029589,4]
[328439843,1717389052376,-2118.74,0.00029589,4]
[328439844,1717389052386,-909.21,0.00029589,4]
[328439845,1717389052396,-651.84,0.00029589,4]
[328439846,1717389052405,-537.35,0.00029589,4]
[328439847,1717389052414,-500.0,0.00029589,4]
[328439848,1717389052424,-982.23,0.00029589,4]
[328439849,1717389052434,-4493.09,0.00029589,4]
[328439850,1717389052447,-500.0,0.00029589,4]
[328439851,1717389052457,-500.0,0.00029589,4]
[328439852,1717389052466,-719.21,0.00029589,4]
[328439853,1717389052476,-793.36,0.00029589,4]
[328439854,1717389052486,-500.0,0.00029589,4]
[328439855,1717389052495,-633.56,0.00029589,4]
[328439856,1717389052504,-500.0,0.00029589,4]
[328439857,1717389052516,-1664.07,0.00029589,4]
[328439858,1717389052526,-576.29,0.00029589,4]
[328439859,1717389052536,-500.0,0.00029589,4]
[328439860,1717389052545,-1096.54,0.00029589,4]
[328439861,1717389052555,-732.02,0.00029589,4]
[328439862,1717389052564,-583.29,0.00029589,4]
[328439863,1717389052573,-500.0,0.00029589,4]
[328439864,1717389052584,-574.86,0.00029589,4]
[328439865,1717389052595,-1896.28,0.00029589,4]
[328439866,1717389052606,-1037.87,0.00029589,4]
[328439867,1717389052615,-848.97,0.00029589,4]
[328439868,1717389052625,-500.0,0.00029589,4]
[328439869,1717389052636,-994.65,0.00029589,4]
[328439870,1717389052646,-500.0,0.00029589,4]
[328439871,1717389052655,-696.39,0.00029589,4]
[328439872,1717389052665,-500.0,0.00029589,4]
[328439873,1717389052675,-855.5,0.00029589,4]
[328439874,1717389052684,-1445.97,0.00029589,4]
[328439875,1717389052693,-500.0,0.00029589,4]
[328439876,1717389052706,-509.19,0.00029589,4]
[328439877,1717389052715,-822.77,0.00029589,4]
[328439878,1717389052725,-500.0,0.00029589,4]
[328439879,1717389052735,-500.0,0.00029589,4]
[328439880,1717389052744,-815.25,0.00029589,4]
[328439881,1717389052753,-411.58545476,0.00029589,4]
[328439882,1717389052762,-500.0,0.00029589,4]
[328439883,1717389052772,-559.21,0.00029589,4]
[328439884,1717389052821,-500.0,0.00029589,4]
[328439885,1717389052830,-500.0,0.00029589,4]
[328439886,1717389052841,-594.00720165,0.00029589,4]
[328439887,1717389052850,-1934.31,0.00029589,4]
[328439888,1717389052860,-1176.86,0.00029589,4]
[328439889,1717389052869,-500.0,0.00029589,4]
[328439890,1717389052878,-2118.35,0.00029589,4]
[328439891,1717389052887,-759.25,0.00029589,4]
[328439892,1717389052896,-912.58,0.00029589,4]
[328439893,1717389052906,-402.29156953,0.00029589,4]
[328439894,1717389053077,-97.70843047,0.00029589,4]
[328439895,1717389053087,-500.0,0.00029589,4]
[328439896,1717389053097,-1405.62,0.00029589,4]
[328439897,1717389053107,-1359.8636949,0.00029589,4]
[328439898,1717389053126,-372.33325024,0.00028219,4]
[328439899,1717389053138,-127.66674976,0.00028219,4]
[328439900,1717389053148,-61.7963051,0.00029589,4]
[328439901,1717389053158,-500.0,0.00029589,4]
[328439902,1717389053167,-500.0,0.00029589,4]
[328439903,1717389053177,-566.0,0.00029589,4]
[328439904,1717389053186,-1184.38848916,0.00029589,4]
[328439905,1717389053420,-191.26110393,0.00028483,2]
[328439906,1717389053430,-500.0,0.00028493,4]
[328439907,1717389053444,-500.0,0.00028767,4]
[328439908,1717389053453,-500.0,0.00028771,4]
[328439909,1717389053463,-500.0,0.00029041,4]
[328439910,1717389053472,-500.0,0.00029045,4]
[328439911,1717389053484,-500.0,0.00029315,4]
[328439912,1717389053493,-500.0,0.00029319,4]
[328439913,1717389053502,-2762.05151084,0.00029589,4]
[328439914,1717389053512,-530.15,0.00029589,4]
[328439915,1717389053524,-1447.14,0.00029589,4]
[328439916,1717389053534,-818.94,0.00029589,4]
[328439917,1717389053543,-12791.31,0.00029589,4]
[328439918,1717389053552,-733.27,0.00029589,4]
[328439919,1717389053562,-500.0,0.00029589,4]
[328439920,1717389053571,-500.0,0.00029589,4]
[328439921,1717389053581,-768.52,0.00029589,4]
[328439922,1717389053591,-500.0,0.00029589,4]
[328439923,1717389053600,-500.0,0.00029589,4]
[328439924,1717389053611,-500.0,0.00029589,4]
[328439925,1717389053621,-500.0,0.00029589,4]
[328439926,1717389053631,-500.0,0.00029589,4]
[328439927,1717389053640,-519.2472894,0.00029593,4]
[328439928,1717389053650,-348.09,0.00029593,4]
[328439929,1717389053659,-500.0,0.00029593,4]
[328439930,1717389053668,-500.0,0.00029593,4]
[328439931,1717389053678,-2915.06,0.00029593,4]
[328439932,1717389053688,-982.37,0.00029593,4]
[328439933,1717389053697,-1544.48,0.00029593,4]
[328439934,1717389053707,-644.6,0.00029593,4]
[328439935,1717389053716,-547.39,0.00029593,4]
[328439936,1717389053725,-500.0,0.00029593,4]
[328439937,1717389053734,-1062.74,0.00029593,4]
[328439938,1717389053743,-1179.69,0.00029593,4]
[328439939,1717389053752,-521.64259317,0.00029593,4]
[328439940,1717389053761,-785.78,0.00029593,4]
[328439941,1717389053771,-500.0,0.00029593,4]
[328439942,1717389053780,-500.0,0.00029593,4]
[328439943,1717389053789,-500.0,0.00029593,4]
[328439944,1717389053799,-1221.0,0.00029593,4]
[328439945,1717389053809,-748.54,0.00029593,4]
[328439946,1717389053818,-500.0,0.00029593,4]
[328439947,1717389053827,-500.0,0.00029593,4]
[328439948,1717389053837,-801.18,0.00029593,4]
[328439949,1717389053847,-500.0,0.00029593,4]
[328439950,1717389053856,-576.19,0.00029593,4]
[328439951,1717389053866,-1096.48,0.00029593,4]
[328439952,1717389053876,-525.18,0.00029593,4]
[328439953,1717389053885,-532.48586351,0.00029593,4]
[328439954,1717389053895,-1379.61,0.00029593,4]
[328439955,1717389053905,-735.02,0.00029593,4]
[328439956,1717389053914,-500.0,0.00029593,4]
[328439957,1717389053923,-500.0,0.00029593,4]
[328439958,1717389053932,-532.55530151,0.00029593,4]
[328439959,1717389053942,-500.0,0.00029593,4]
[328439960,1717389053951,-500.0,0.00029593,4]
[328439961,1717389053961,-520.7360951,0.00029594,4]
[328439962,1717389053971,-500.0,0.00029594,4]
[328439963,1717389053981,-500.0,0.00029594,4]
[328439964,1717389053990,-500.0,0.00029594,4]
[328439965,1717389054004,-500.0,0.00029594,4]
[328439966,1717389054014,-500.0,0.00029594,4]
[328439967,1717389054023,-500.0,0.00029594,4]
[328439968,1717389054033,-500.0,0.00029594,4]
[328439969,1717389054042,-500.0,0.00029594,4]
[328439970,1717389054052,-500.0,0.00029594,4]
[328439971,1717389054061,-500.0,0.00029594,4]
[328439972,1717389054070,-500.0,0.00029594,4]
[328439973,1717389054080,-500.0,0.00029594,4]
[328439974,1717389054090,-500.0,0.00029594,4]
[328439975,1717389054100,-500.0,0.00029594,4]
[328439976,1717389054109,-500.0,0.00029594,4]
[328439977,1717389054117,-500.0,0.00029594,4]
[328439978,1717389054126,-176.79370633,0.00029594,4]
[328439979,1717389054135,-500.0,0.00029594,4]
[328439980,1717389054145,-500.0,0.00029594,4]
[328439981,1717389054154,-500.0,0.00029594,4]
[328439982,1717389054163,-500.0,0.00029594,4]
[328439983,1717389054172,-541.29,0.00029594,4]
[328439984,1717389054182,-500.0,0.00029594,4]
[328439985,1717389054191,-500.0,0.00029594,4]
[328439986,1717389054202,-500.0,0.00029594,4]
[328439987,1717389054211,-500.0,0.00029594,4]
[328439988,1717389054220,-500.0,0.00029594,4]
[328439989,1717389054230,-500.0,0.00029594,4]
[328439990,1717389054239,-500.0,0.00029594,4]
[328439991,1717389054248,-500.0,0.00029594,4]
[328439992,1717389054257,-812.33,0.00029594,4]
[328439993,1717389054266,-500.0,0.00029594,4]
[328439994,1717389054275,-500.0,0.00029594,4]
[328439995,1717389054284,-500.0,0.00029594,4]
[328439996,1717389054293,-874.43,0.000296,2]
[328439997,1717389054303,-1055.91,0.000296,2]
[328439998,1717389054313,-150.0,0.00029684,2]
[328439999,1717389054322,-997.322043,0.000298,2]
[328440000,1717389054332,-601.111706,0.00029801,2]
[328440001,1717389054342,-721.375399,0.00029801,2]
[328440002,1717389054352,-318.108728,0.00029801,2]
[328440003,1717389054360,-150.0,0.00029821,2]
[328440004,1717389054369,-500.0,0.00029863,4]
[328440005,1717389054379,-150.0,0.00029863,4]
[328440006,1717389054388,-500.0,0.00029863,4]
[328440007,1717389054397,-500.0,0.00029863,4]
[328440008,1717389054407,-500.0,0.00029863,4]
[328440009,1717389054416,-500.0,0.00029863,4]
[328440010,1717389054426,-500.0,0.00029863,4]
[328440011,1717389054436,-500.0,0.00029863,4]
[328440012,1717389054450,-500.0,0.00029863,4]
[328440013,1717389054462,-500.0,0.00029863,4]
[328440014,1717389054472,-500.0,0.00029863,4]
[328440015,1717389054483,-1568.09,0.00029863,4]
[328440016,1717389054493,-4687.56,0.00029863,4]
[328440017,1717389054503,-1548.33,0.00029863,4]
[328440018,1717389054512,-4104.15,0.00029863,4]
[328440019,1717389054524,-1535.91,0.00029863,4]
[328440020,1717389054534,-500.0,0.00029863,4]
[328440021,1717389054543,-910.08,0.00029863,4]
[328440022,1717389054553,-696.56,0.00029863,4]
[328440023,1717389054563,-500.0,0.00029863,4]
[328440024,1717389054572,-1151.42,0.00029863,4]
[328440025,1717389054581,-1173.66,0.00029863,4]
[328440026,1717389054592,-5921.43,0.00029863,4]
[328440027,1717389054601,-539.44,0.00029863,4]
[328440028,1717389054610,-848.91,0.00029863,4]
[328440029,1717389054620,-1286.49,0.00029863,4]
[328440030,1717389054629,-500.0,0.00029863,4]
[328440031,1717389054639,-632.25,0.00029863,4]
[328440032,1717389054648,-559.62,0.00029863,4]
[328440033,1717389054657,-500.0,0.00029863,4]
[328440034,1717389054667,-565.7,0.00029863,4]
[328440035,1717389054676,-2118.74,0.00029863,4]
[328440036,1717389054686,-651.84,0.00029863,4]
[328440037,1717389054695,-909.21,0.00029863,4]
[328440038,1717389054704,-537.35,0.00029863,4]
[328440039,1717389054714,-500.0,0.00029863,4]
[328440040,1717389054723,-982.23,0.00029863,4]
[328440041,1717389054732,-4493.09,0.00029863,4]
[328440042,1717389054742,-500.0,0.00029863,4]
[328440043,1717389054751,-346.55306988,0.00029863,4]
[328440044,1717389054761,-719.21,0.00029863,4]
[328440045,1717389054771,-793.36,0.00029863,4]
[328440046,1717389054780,-200.79029947,0.00029863,4]
[328440047,1717389054790,-633.56,0.00029863,4]
[328440048,1717389054799,-500.0,0.00029863,4]
[328440049,1717389054809,-1664.07,0.00029863,4]
[328440050,1717389054819,-576.29,0.00029863,4]
[328440051,1717389054829,-500.0,0.00029863,4]
[328440052,1717389054840,-1096.54,0.00029863,4]
[328440053,1717389054850,-732.02,0.00029863,4]
[328440054,1717389054859,-583.29,0.00029863,4]
[328440055,1717389054869,-500.0,0.00029863,4]
[328440056,1717389054878,-574.86,0.00029863,4]
[328440057,1717389054888,-1037.87,0.00029863,4]
[328440058,1717389054899,-1896.28,0.00029863,4]
[328440059,1717389054908,-848.97,0.00029863,4]
[328440060,1717389054917,-500.0,0.00029863,4]
[328440061,1717389054926,-994.65,0.00029863,4]
[328440062,1717389054935,-500.0,0.00029863,4]
[328440063,1717389054944,-696.39,0.00029863,4]
[328440064,1717389054954,-500.0,0.00029863,4]
[328440065,1717389054963,-855.5,0.00029863,4]
[328440066,1717389054973,-1445.97,0.00029863,4]
[328440067,1717389054982,-500.0,0.00029863,4]
[328440068,1717389054992,-509.19,0.00029863,4]
[328440069,1717389055002,-822.77,0.00029863,4]
[328440070,1717389055011,-500.0,0.00029863,4]
[328440071,1717389055020,-500.0,0.00029863,4]
[328440072,1717389055030,-815.25,0.00029863,4]
[328440073,1717389055039,-500.0,0.00029863,4]
[328440074,1717389055049,-559.21,0.00029863,4]
[328440075,1717389055059,-500.0,0.00029863,4]
[328440076,1717389055068,-500.0,0.00029863,4]
[328440077,1717389055078,-1934.31,0.00029863,4]
[328440078,1717389055088,-1176.86,0.00029863,4]
[328440079,1717389055098,-500.0,0.00029863,4]
[328440080,1717389055108,-2118.35,0.00029863,4]
[328440081,1717389055118,-759.25,0.00029863,4]
[328440082,1717389055128,-912.58,0.00029863,4]
[328440083,1717389055138,-500.0,0.00029863,4]
[328440084,1717389055148,-500.0,0.00029863,4]
[328440085,1717389055158,-1405.62,0.00029863,4]
[328440086,1717389055168,-1421.66,0.00029863,4]
[328440087,1717389055179,-500.0,0.00029863,4]
[328440088,1717389055189,-500.0,0.00029863,4]
[328440089,1717389055199,-566.0,0.00029863,4]
[328440090,1717389055208,-3946.44,0.00029863,4]
[328440091,1717389055218,-530.15,0.00029863,4]
[328440092,1717389055228,-1447.14,0.00029863,4]
[328440093,1717389055238,-818.94,0.00029863,4]
[328440094,1717389055248,-12791.31,0.00029863,4]
[328440095,1717389055258,-733.27,0.00029863,4]
[328440096,1717389055267,-500.0,0.00029863,4]
[328440097,1717389055277,-500.0,0.00029863,4]
[328440098,1717389055287,-768.52,0.00029863,4]
[328440099,1717389055297,-500.0,0.00029863,4]
[328440100,1717389055307,-500.0,0.00029863,4]
[328440101,1717389055317,-500.0,0.00029863,4]
[328440102,1717389055327,-500.0,0.00029863,4]
[328440103,1717389055338,-500.0,0.00029863,4]
[328440104,1717389055348,-223.721536,0.00029863,14]
[328440105,1717389055366,-500.0,0.00029867,4]
[328440106,1717389055377,-500.0,0.00029867,4]
[328440107,1717389055387,-2915.06,0.00029867,4]
[328440108,1717389055397,-982.37,0.00029867,4]
[328440109,1717389055407,-1544.48,0.00029867,4]
[328440110,1717389055417,-644.6,0.00029867,4]
[328440111,1717389055427,-547.39,0.00029867,4]
[328440112,1717389055440,-500.0,0.00029867,4]
[328440113,1717389055451,-1062.74,0.00029867,4]
[328440114,1717389055461,-1179.69,0.00029867,4]
[328440115,1717389055471,-785.78,0.00029867,4]
[328440116,1717389055482,-500.0,0.00029867,4]
[328440117,1717389055492,-500.0,0.00029867,4]
[328440118,1717389055502,-500.0,0.00029867,4]
[328440119,1717389055512,-1221.0,0.00029867,4]
[328440120,1717389055523,-748.54,0.00029867,4]
[328440121,1717389055534,-502.16220137,0.00029867,4]
[328440122,1717389055544,-500.0,0.00029867,4]
[328440123,1717389055555,-801.18,0.00029867,4]
[328440124,1717389055565,-535.57689135,0.00029867,4]
[328440125,1717389055575,-576.19,0.00029867,4]
[328440126,1717389055587,-1096.48,0.00029867,4]
[328440127,1717389055597,-525.18,0.00029867,4]
[328440128,1717389055607,-1379.61,0.00029867,4]
[328440129,1717389055617,-735.02,0.00029867,4]
[328440130,1717389055627,-500.0,0.00029867,4]
[328440131,1717389055637,-500.0,0.00029867,4]
[328440132,1717389055647,-500.0,0.00029867,4]
[328440133,1717389055657,-500.0,0.00029867,4]
[328440134,1717389055667,-391.88483711,0.00029868,4]
[328440135,1717389055676,-500.0,0.00029868,4]
[328440136,1717389055686,-500.0,0.00029868,4]
[328440137,1717389055696,-500.0,0.00029868,4]
[328440138,1717389055706,-236.23425631,0.00029868,4]
[328440139,1717389055716,-500.0,0.00029868,4]
[328440140,1717389055726,-500.0,0.00029868,4]
[328440141,1717389055736,-500.0,0.00029868,4]
[328440142,1717389055746,-500.0,0.00029868,4]
[328440143,1717389055755,-315.19280502,0.00029868,4]
[328440144,1717389055765,-500.0,0.00029868,4]
[328440145,1717389055775,-500.0,0.00029868,4]
[328440146,1717389055785,-500.0,0.00029868,4]
[328440147,1717389055794,-265.81811826,0.00029868,4]
[328440148,1717389055804,-500.0,0.00029868,4]
[328440149,1717389055814,-500.0,0.00029868,4]
[328440150,1717389055824,-500.0,0.00029868,4]
[328440151,1717389055835,-500.0,0.00029868,4]
[328440152,1717389055845,-500.0,0.00029868,4]
[328440153,1717389055855,-541.29,0.00029868,4]
[328440154,1717389055864,-500.0,0.00029868,4]
[328440155,1717389055875,-500.0,0.00029868,4]
[328440156,1717389055885,-500.0,0.00029868,4]
[328440157,1717389055895,-500.0,0.00029868,4]
[328440158,1717389055906,-500.0,0.00029868,4]
[328440159,1717389055916,-500.0,0.00029868,4]
[328440160,1717389055926,-500.0,0.00029868,4]
[328440161,1717389055936,-812.33,0.00029868,4]
[328440162,1717389055946,-500.0,0.00029868,4]
[328440163,1717389055957,-500.0,0.00029868,4]
[328440164,1717389055968,-500.0,0.00029868,4]
[328440165,1717389055979,-2009.63809376,0.000299,2]
[328440166,1717389055990,-150.0,0.00029958,2]
[328440167,1717389056000,-150.0,0.00029969,4]
[328440168,1717389056010,-13860.93441176,0.0002998,2]
[328440169,1717389056020,-1329.762725,0.0003,2]
[328440170,1717389056030,-2181.29187519,0.0003,10]
[328440171,1717389056040,-6430.26639955,0.0003,5]
[328440172,1717389056051,-5702.70709465,0.0003,2]
[328440173,1717389056060,-2234.0,0.0003,3]
[328440174,1717389056070,-2349.79329018,0.0003,4]
[328440175,1717389056080,-5000.0,0.0003,4]
[328440176,1717389056092,-158.41834811,0.0003,4]
[328440177,1717389056102,-501.14,0.0003,2]
[328440178,1717389056111,-23892.56567196,0.0003,4]
[328440179,1717389056121,-19456.64909613,0.0003,4]
[328440180,1717389056131,-9233.8663148,0.0003,2]
[328440181,1717389056149,-3724.29982513,0.0003,2]
[328440182,1717389056159,-155.0,0.0003,2]
[328440183,1717389056169,-155.68870509,0.0003,2]
[328440184,1717389056179,-200.0,0.0003,2]
[328440185,1717389056189,-150.0,0.0003,2]
[328440186,1717389056199,-150.0,0.0003,2]
[328440187,1717389056210,-150.0,0.0003,2]
[328440188,1717389056219,-333.96,0.0003,2]
[328440189,1717389056230,-150.0,0.0003,2]
[328440190,1717389056241,-150.0,0.0003,2]
[328440191,1717389056251,-150.0,0.0003,2]
[328440192,1717389056261,-150.0,0.0003,2]
[328440193,1717389056272,-150.0,0.0003,2]
[328440194,1717389056281,-150.0,0.0003,2]